fUST/lending_fUST_20250809
["ID","MTS","AMOUNT","RATE_DAILY","PERIOD"]
[378150775,1754749853758,-325.0,0.00024429,3]
[378150778,1754749853767,-325.0,0.00024429,3]
[378150779,1754749853776,-325.0,0.00024429,3]
[378150782,1754749853785,-325.0,0.00024429,3]
[378150784,1754749853794,-325.0,0.00024429,3]
[378150785,1754749853803,-325.0,0.00024429,3]
[378150787,1754749853813,-325.0,0.00024429,3]
[378150790,1754749853822,-325.0,0.00024429,3]
[378150792,1754749853831,-325.0,0.00024429,3]
[378150793,1754749853840,-325.0,0.00024429,3]
[378150795,1754749853849,-325.0,0.00024429,3]
[378150797,1754749853858,-325.0,0.00024429,3]
[378150799,1754749853868,-371.04001954,0.00024429,3]
[378150801,1754749853877,-325.0,0.00024429,3]
[378150803,1754749853886,-231.92402426,0.00024429,3]
[378150805,1754749853897,-461.55179734,0.00024429,3]
[378150807,1754749853906,-12666.14847857,0.00024429,3]
[378150810,1754749853915,-216.61183532,0.00024429,3]
[378150812,1754749853924,-160.0,0.00024429,3]
[378150813,1754749853933,-312.16666667,0.00024429,3]
[378150816,1754749853943,-160.0,0.00024429,3]
[378150817,1754749853952,-527.77735381,0.00024429,3]
[378150820,1754749853961,-215.40758176,0.00024429,3]
[378150821,1754749853970,-842.95011917,0.00024429,3]
[378150824,1754749853980,-160.0,0.00024429,3]
[378150825,1754749853989,-160.0,0.00024429,3]
[378150827,1754749853998,-151.0,0.0002443,7]
[378150830,1754749854008,-151.0,0.0002443,7]
[378150832,1754749854019,-328.251835,0.0002443,7]
[378150833,1754749854028,-328.251835,0.0002443,7]
[378150835,1754749854038,-457.995757,0.0002443,7]
[378150838,1754749854048,-457.995757,0.0002443,7]
[378150840,1754749854057,-151.0,0.0002443,7]
[378150841,1754749854067,-151.0,0.0002443,7]
[378150844,1754749854076,-231.92402426,0.00024433,3]
[378150846,1754749854085,-461.55179734,0.00024433,3]
[378150848,1754749854094,-151.0,0.00024433,7]
[378150850,1754749854103,-288.856446,0.00024433,7]
[378150852,1754749854112,-288.856446,0.00024433,7]
[378150854,1754749854122,-360.0,0.00024454,2]
[378150856,1754749854131,-1715.0,0.00024511,2]
[378150857,1754749854140,-1800.0,0.00024568,2]
[378150859,1754749854151,-1052.13338448,0.00024578,2]
[378150861,1754749854160,-151.0,0.000246,8]
[378150864,1754749854169,-17776.01415627,0.0002465,2]
[378150866,1754749854178,-151.0,0.00024657,7]
[378150868,1754749854188,-460.0,0.00024657,2]
[378150870,1754749854198,-460.0,0.00024657,2]
[378150872,1754749854207,-580.24,0.00024657,2]
[378150874,1754749854216,-460.0,0.00024657,2]
[378150876,1754749854225,-460.0,0.00024657,2]
[378150878,1754749854235,-460.0,0.00024657,2]
[378150880,1754749854245,-598.0,0.00024657,2]
[378150882,1754749854254,-460.0,0.00024657,2]
[378150884,1754749854264,-582.22,0.00024657,2]
[378150886,1754749854273,-151.0,0.00024657,7]
[378150888,1754749854282,-151.0,0.00024657,7]
[378150890,1754749854292,-702.88,0.00024657,2]
[378150892,1754749854303,-747.44,0.00024657,2]
[378150894,1754749854315,-2181.9,0.00024657,4]
[378150906,1754749854425,-460.0,0.00024657,2]
[378150908,1754749854435,-1486.02,0.00024657,2]
[378150910,1754749854444,-460.0,0.00024657,2]
[378150912,1754749854453,-616.0,0.00024657,2]
[378150914,1754749854463,-776.49,0.00024657,2]
[378150916,1754749854474,-654.85,0.00024657,2]
[378150919,1754749854483,-602.34,0.00024657,2]
[378150921,1754749854493,-707.22,0.00024657,2]
[378150923,1754749854503,-1415.06,0.00024657,2]
[378150924,1754749854512,-460.0,0.00024657,2]
[378150926,1754749854521,-981.01,0.00024657,2]
[378150929,1754749854531,-460.0,0.00024657,2]
[378150931,1754749854540,-151.0,0.00024657,7]
[378150933,1754749854550,-1809.31,0.00024657,2]
[378150934,1754749854559,-1460.46,0.00024657,2]
[378150937,1754749854569,-460.0,0.00024657,2]
[378150939,1754749854579,-460.0,0.00024657,2]
[378150941,1754749854589,-151.0,0.00024657,7]
[378150943,1754749854598,-1265.82,0.00024657,2]
[378150945,1754749854607,-476.92,0.00024657,2]
[378150947,1754749854617,-4072.84,0.00024657,2]
[378150949,1754749854626,-460.0,0.00024657,2]
[378150951,1754749854635,-556.77,0.00024657,2]
[378150953,1754749854645,-460.0,0.00024657,2]
[378150955,1754749854654,-775.04,0.00024657,2]
[378150957,1754749854663,-1375.6,0.00024657,2]
[378150958,1754749854672,-464.83,0.00024657,2]
[378150961,1754749854682,-1057.86,0.00024657,2]
[378150963,1754749854691,-697.23,0.00024657,2]
[378150965,1754749854701,-460.0,0.00024657,2]
[378150966,1754749854710,-213.56704222,0.00024657,2]
[378150969,1754749854719,-460.0,0.00024657,2]
[378150970,1754749854733,-1216.53,0.00024657,2]
[378150972,1754749854743,-594.46,0.00024657,2]
[378150974,1754749854752,-1300.26,0.00024657,2]
[378150976,1754749854761,-1109.08,0.00024657,2]
[378150978,1754749854771,-460.0,0.00024657,2]
[378150981,1754749854781,-847.56,0.00024657,2]
[378150983,1754749854791,-2267.02,0.00024657,2]
[378150985,1754749854800,-584.56,0.00024657,2]
[378150986,1754749854809,-200.0,0.00024658,15]
[378150989,1754749854818,-517.0,0.00024658,2]
[378150990,1754749854827,-500.0,0.00024658,2]
[378150992,1754749854837,-1521.75549115,0.00024664,2]
[378150995,1754749854846,-1715.0,0.0002475,2]
[378150997,1754749854855,-154.3353,0.00024798,3]
[378150999,1754749854865,-9393.90266385,0.000248,2]
[378151001,1754749854874,-329.69635784,0.000248,2]
[378151003,1754749854883,-265.66113027,0.0002482,2]
[378151005,1754749854895,-1715.0,0.00024832,2]
[378151007,1754749854904,-500.0,0.00024873,2]
[378151009,1754749854914,-150.0,0.00024873,2]
[378151010,1754749854923,-151.0,0.00024885,7]
[378151012,1754749854932,-201.490995,0.00024885,7]
[378151015,1754749854942,-201.490995,0.00024885,7]
[378151017,1754749854951,-1474.22908551,0.000249,2]
[378151019,1754749854961,-270.171787,0.000249,7]
[378151021,1754749854970,-151.0,0.000249,7]
[378151023,1754749854980,-151.0,0.000249,7]
[378151025,1754749854989,-151.0,0.000249,7]
[378151027,1754749854999,-439.04490353,0.000249,2]
[378151029,1754749855008,-151.0,0.000249,7]
[378151031,1754749855017,-328.251835,0.000249,7]
[378151033,1754749855026,-328.251835,0.000249,7]
[378151035,1754749855036,-151.0,0.000249,7]
[378151037,1754749855046,-457.995757,0.000249,7]
[378151039,1754749855055,-457.995757,0.000249,7]
[378151041,1754749855064,-151.0,0.000249,7]
[378151043,1754749855074,-151.0,0.000249,7]
[378151045,1754749855084,-219.910588,0.000249,7]
[378151047,1754749855093,-151.0,0.000249,7]
[378151049,1754749855103,-151.0,0.000249,7]
[378151051,1754749855112,-209.833688,0.000249,7]
[378151053,1754749855122,-151.0,0.000249,7]
[378151055,1754749855131,-209.833688,0.000249,7]
[378151057,1754749855140,-151.0,0.000249,7]
[378151059,1754749855150,-381.209924,0.000249,7]
[378151061,1754749855160,-381.209924,0.000249,7]
[378151063,1754749855169,-151.0,0.000249,7]
[378151065,1754749855178,-151.0,0.000249,7]
[378151067,1754749855187,-201.490995,0.000249,7]
[378151069,1754749855197,-201.490995,0.000249,7]
[378151071,1754749855206,-10.0251011,0.000249,7]
[378151074,1754749855222,-140.9748989,0.000249,7]
[378151076,1754749855231,-204.844558,0.000249,7]
[378151078,1754749855240,-288.856446,0.000249,7]
[378151080,1754749855249,-17806.98050922,0.000249,2]
[378151150,1754749855893,-460.0,0.00021917,2]
[378151152,1754749855904,-460.0,0.00021917,2]
[378151154,1754749855915,-200.09,0.00022,2]
[378151156,1754749855926,-460.0,0.00022191,2]
[378151158,1754749855940,-460.0,0.00022465,2]
[378151161,1754749855952,-460.0,0.00022739,2]
[378151163,1754749855963,-460.0,0.00022739,2]
[378151165,1754749855975,-460.0,0.00023013,2]
[378151167,1754749855986,-460.0,0.00023013,2]
[378151170,1754749855998,-200.09,0.00023197,2]
[378151172,1754749856009,-103.42,0.00023287,2]
[378154061,1754749896152,1690.0,0.00030137,120]
[378154063,1754749940766,9670.41072836,0.00021514,2]
[378154064,1754749940790,10000.0,0.00021514,2]
[378154065,1754749940812,10000.0,0.00021514,2]
[378154066,1754749940835,10000.0,0.00021514,2]
[378154067,1754749940858,10000.0,0.00021514,2]
[378154068,1754749940882,10000.0,0.00021514,2]
[378154069,1754749940905,10000.0,0.00021514,2]
[378154070,1754749940927,10000.0,0.00021514,2]
[378154071,1754749940949,10000.0,0.00021514,2]
[378154072,1754749940974,10000.0,0.00021514,2]
[378154073,1754749940996,10000.0,0.00021514,2]
[378154074,1754749941027,10000.0,0.00021514,2]
[378154075,1754749941049,10000.0,0.00021514,2]
[378154076,1754749941072,10000.0,0.00021514,2]
[378154077,1754749976286,3469.97989441,0.000199,2]
[378154078,1754749976313,2627.14335911,0.000199,2]
[378154079,1754750021167,311.22756929,0.00020869,2]
[378154080,1754750089953,480.0,0.0002145,2]
[378154082,1754750159476,6119.08042285,0.000199,2]
[378154083,1754750168116,150.0,0.00027471,30]
[378154084,1754750223123,178.718432,0.00020849,2]
[378154085,1754750243338,150.0,0.00028,30]
[378154086,1754750322387,186.73654158,0.00020869,2]
[378154087,1754750352062,6034.68497935,0.000199,2]
[378154088,1754750410895,1000.0,0.0002077,2]
[378154089,1754750436230,201.6849396,0.0002077,2]
[378154090,1754750538682,6040.63329025,0.000199,2]
[378154091,1754750601956,150.0,0.00024159,30]
[378154092,1754750602379,150.0,0.0002531,30]
[378154093,1754750615535,611.13,0.00018,10]
[378154094,1754750638980,1142.36066609,0.00021414,2]
[378154095,1754750726036,5988.52162634,0.000199,2]
[378154096,1754750754423,375.668851,0.00013699,2]
[378154097,1754750754626,375.668851,0.00020187,2]
[378154098,1754750756301,430.0,0.00030137,120]
[378154100,1754750765292,345.0,0.0002,2]
[378154101,1754750798608,150.0,0.00019414,2]
[378154102,1754750882337,150.0,0.00026575,30]
[378154103,1754750882857,150.0,0.00027841,30]
[378154104,1754750915746,5788.90423866,0.000199,2]
[378154105,1754750924280,999.56558282,0.00021414,2]
[378154106,1754750957307,4223.18018409,0.00020842,2]
[378154107,1754750957331,20000.0,0.00020842,2]
[378154108,1754750957355,676.81981591,0.00020842,2]
[378154110,1754751027854,150.0,0.00027454,30]
[378154169,1754751032483,-1200.0,0.00021512,2]
[378154171,1754751032493,-1200.0,0.00021513,2]
[378154173,1754751032502,-300.0,0.00021513,2]
[378154175,1754751032511,-1872.41005116,0.00021514,2]
[378154178,1754751032522,-906.48780052,0.00021514,2]
[378154180,1754751032533,-722.98,0.00021514,2]
[378154191,1754751032634,-1146.5,0.00021514,2]
[378154746,1754751038298,-828.59959807,0.00021514,2]
[378154766,1754751038483,-33714.89982852,0.00021514,2]
[378154768,1754751038496,-585.39320471,0.00021514,2]
[378154771,1754751038510,-5788.90423863,0.00021655,2]
[378154773,1754751038522,-1125.17060576,0.00021817,2]
[378154775,1754751038533,-319.82,0.00021906,10]
[378154777,1754751038544,-451.2,0.00021906,10]
[378154780,1754751038556,-376.0,0.00021906,10]
[378154782,1754751038571,-313.33,0.00021906,10]
[378154784,1754751038586,-500.0,0.00021915,2]
[378154787,1754751038598,-280.98427165,0.00021915,2]
[378154789,1754751038609,-500.0,0.00021915,2]
[378154792,1754751038622,-426.81283457,0.00021915,2]
[378154794,1754751038638,-49794.90255149,0.00021916,2]
[378154796,1754751038649,-500.0,0.00021916,2]
[378154798,1754751038661,-500.0,0.00021916,2]
[378154800,1754751038674,-500.0,0.00021916,2]
[378154803,1754751038685,-500.0,0.00021916,2]
[378154805,1754751038698,-500.0,0.00021916,2]
[378154807,1754751038711,-500.0,0.00021916,2]
[378154810,1754751038723,-500.0,0.00021916,2]
[378154812,1754751038735,-500.0,0.00021916,2]
[378154814,1754751038746,-500.0,0.00021916,2]
[378154815,1754751038759,-500.0,0.00021916,2]
[378154816,1754751038771,-500.0,0.00021916,2]
[378154817,1754751038782,-342.94416116,0.00021916,2]
[378154818,1754751038795,-500.0,0.00021916,2]
[378154819,1754751038808,-240.06091281,0.00021916,2]
[378154820,1754751038820,-1152.15401954,0.00021916,2]
[378154821,1754751038831,-1152.15401954,0.00021916,2]
[378154822,1754751038844,-1152.15401954,0.00021916,2]
[378154823,1754751038854,-1152.15401954,0.00021916,2]
[378154824,1754751038864,-1152.15401954,0.00021916,2]
[378154825,1754751038875,-1152.15401954,0.00021916,2]
[378154826,1754751038887,-1152.15401954,0.00021916,2]
[378154827,1754751038898,-1152.15401954,0.00021916,2]
[378154828,1754751038910,-1152.15401954,0.00021916,2]
[378154829,1754751038922,-1152.15401954,0.00021916,2]
[378154830,1754751038934,-1152.15401954,0.00021916,2]
[378154831,1754751038946,-1183.57640189,0.00021916,2]
[378154833,1754751038957,-1183.57640189,0.00021916,2]
[378154834,1754751038970,-1183.57640189,0.00021916,2]
[378154837,1754751038982,-500.0,0.00021917,2]
[378154839,1754751038994,-460.0,0.00021917,2]
[378154841,1754751039006,-460.0,0.00021917,2]
[378154844,1754751039018,-177.76400115,0.00021917,2]
[378154846,1754751039030,-460.0,0.00021917,2]
[378154848,1754751039041,-467.3844476,0.00021917,2]
[378154850,1754751039051,-460.0,0.00021917,2]
[378154852,1754751039061,-212.69322998,0.00021917,2]
[378154854,1754751039071,-460.0,0.00021917,2]
[378154856,1754751039081,-460.0,0.00021917,2]
[378154858,1754751039092,-460.0,0.00021917,2]
[378154860,1754751039104,-460.0,0.00021917,2]
[378154863,1754751039116,-460.0,0.00021917,2]
[378154866,1754751039134,-460.0,0.00021917,2]
[378154868,1754751039144,-460.0,0.00021917,2]
[378154870,1754751039154,-460.0,0.00021917,2]
[378154872,1754751039164,-562.75039135,0.00021917,2]
[378154874,1754751039175,-460.0,0.00021917,2]
[378154876,1754751039185,-460.0,0.00021917,2]
[378154878,1754751039196,-460.0,0.00021917,2]
[378154880,1754751039208,-460.0,0.00021917,2]
[378154882,1754751039218,-460.0,0.00021917,2]
[378154885,1754751039229,-460.0,0.00021917,2]
[378154887,1754751039239,-460.0,0.00021917,2]
[378154889,1754751039248,-460.0,0.00021917,2]
[378154891,1754751039259,-460.0,0.00021917,2]
[378154893,1754751039273,-460.0,0.00021917,2]
[378154896,1754751039284,-460.0,0.00021917,2]
[378154898,1754751039296,-460.0,0.00021917,2]
[378154900,1754751039308,-460.0,0.00021917,2]
[378154902,1754751039319,-460.0,0.00021917,2]
[378154904,1754751039331,-460.0,0.00021917,2]
[378154907,1754751039342,-460.0,0.00021917,2]
[378154909,1754751039353,-460.0,0.00021917,2]
[378154911,1754751039363,-460.0,0.00021917,2]
[378154913,1754751039373,-466.74240659,0.00021917,2]
[378154915,1754751039384,-460.0,0.00021917,2]
[378154917,1754751039395,-460.0,0.00021917,2]
[378154919,1754751039405,-460.0,0.00021917,2]
[378154921,1754751039417,-460.0,0.00021917,2]
[378154923,1754751039427,-460.0,0.00021917,2]
[378154926,1754751039438,-460.0,0.00021917,2]
[378154928,1754751039448,-463.33883989,0.00021917,2]
[378154930,1754751039458,-460.0,0.00021917,2]
[378154932,1754751039469,-466.89859832,0.00021917,2]
[378154934,1754751039480,-460.0,0.00021917,2]
[378154936,1754751039492,-460.0,0.00021917,2]
[378154938,1754751039503,-460.0,0.00021917,2]
[378154940,1754751039515,-460.0,0.00021917,2]
[378154942,1754751039525,-460.0,0.00021917,2]
[378154945,1754751039536,-460.0,0.00021917,2]
[378154947,1754751039547,-460.0,0.00021917,2]
[378154949,1754751039558,-460.0,0.00021917,2]
[378154951,1754751039569,-476.43504889,0.00021917,2]
[378154953,1754751039580,-460.0,0.00021917,2]
[378154955,1754751039590,-460.0,0.00021917,2]
[378154957,1754751039602,-460.0,0.00021917,2]
[378154959,1754751039612,-460.0,0.00021917,2]
[378154962,1754751039624,-479.26074784,0.00021917,2]
[378154964,1754751039637,-460.0,0.00021917,2]
[378154966,1754751039647,-460.0,0.00021917,2]
[378154968,1754751039658,-460.0,0.00021917,2]
[378154970,1754751039671,-460.0,0.00021917,2]
[378154972,1754751039681,-460.0,0.00021917,2]
[378154974,1754751039692,-460.0,0.00021917,2]
[378154976,1754751039703,-460.0,0.00021917,2]
[378154978,1754751039714,-460.0,0.00021917,2]
[378154980,1754751039725,-460.0,0.00021917,2]
[378154982,1754751039736,-460.0,0.00021917,2]
[378154984,1754751039746,-460.0,0.00021917,2]
[378154986,1754751039757,-601.43046983,0.00021917,2]
[378154989,1754751039768,-460.0,0.00021917,2]
[378154991,1754751039780,-571.80308689,0.00021917,2]
[378154993,1754751039791,-460.0,0.00021917,2]
[378154995,1754751039801,-460.0,0.00021917,2]
[378154997,1754751039812,-460.0,0.00021917,2]
[378154999,1754751039822,-470.15,0.00021917,2]
[378155001,1754751039832,-460.0,0.00021917,2]
[378155003,1754751039842,-460.0,0.00021917,2]
[378155005,1754751039852,-460.0,0.00021917,2]
[378155007,1754751039863,-460.0,0.00021917,2]
[378155010,1754751039873,-460.0,0.00021917,2]
[378155014,1754751039884,-460.0,0.00021917,2]
[378155016,1754751039894,-460.0,0.00021917,2]
[378155018,1754751039905,-460.0,0.00021917,2]
[378155020,1754751039915,-460.0,0.00021917,2]
[378155022,1754751039925,-460.0,0.00021917,2]
[378155024,1754751039936,-460.0,0.00021917,2]
[378155026,1754751039946,-460.0,0.00021917,2]
[378155028,1754751039956,-460.0,0.00021917,2]
[378155031,1754751039967,-500.0,0.00021917,2]
[378155034,1754751039978,-460.0,0.00021917,2]
[378155038,1754751039988,-214.04,0.00021917,2]
[378155040,1754751039998,-460.0,0.00021917,2]
[378155042,1754751040009,-460.0,0.00021917,2]
[378155044,1754751040019,-460.0,0.00021917,2]
[378155046,1754751040030,-460.0,0.00021917,2]
[378155048,1754751040040,-460.0,0.00021917,2]
[378155050,1754751040051,-460.0,0.00021917,2]
[378155053,1754751040062,-460.0,0.00021917,2]
[378155055,1754751040072,-460.0,0.00021917,2]
[378155057,1754751040083,-460.0,0.00021917,2]
[378155059,1754751040093,-460.0,0.00021917,2]
[378155061,1754751040102,-460.0,0.00021917,2]
[378155063,1754751040112,-461.82966957,0.00021917,2]
[378155065,1754751040121,-460.0,0.00021917,2]
[378155067,1754751040130,-460.0,0.00021917,2]
[378155069,1754751040140,-460.0,0.00021917,2]
[378155071,1754751040149,-460.0,0.00021917,2]
[378155073,1754751040159,-460.0,0.00021917,2]
[378155075,1754751040168,-460.0,0.00021917,2]
[378155097,1754751040369,-460.0,0.00021917,2]
[378155100,1754751040386,-472.211736,0.00021917,2]
[378155102,1754751040395,-460.0,0.00021917,2]
[378155104,1754751040405,-460.0,0.00021917,2]
[378155106,1754751040415,-460.0,0.00021917,2]
[378155108,1754751040424,-460.0,0.00021917,2]
[378155110,1754751040434,-182.93593403,0.00021917,2]
[378155112,1754751040444,-460.0,0.00021917,2]
[378155114,1754751040453,-460.0,0.00021917,2]
[378155116,1754751040462,-460.0,0.00021917,2]
[378155118,1754751040472,-460.0,0.00021917,2]
[378155120,1754751040481,-460.0,0.00021917,2]
[378155122,1754751040491,-460.0,0.00021917,2]
[378155124,1754751040501,-460.0,0.00021917,2]
[378155126,1754751040511,-460.0,0.00021917,2]
[378155128,1754751040520,-460.0,0.00021917,2]
[378155130,1754751040529,-460.0,0.00021917,2]
[378155132,1754751040538,-460.0,0.00021917,2]
[378155134,1754751040547,-460.0,0.00021917,2]
[378155136,1754751040557,-460.0,0.00021917,2]
[378155138,1754751040566,-460.0,0.00021917,2]
[378155140,1754751040575,-460.0,0.00021917,2]
[378155142,1754751040584,-460.0,0.00021917,2]
[378155144,1754751040594,-460.0,0.00021917,2]
[378155146,1754751040603,-460.0,0.00021917,2]
[378155148,1754751040612,-646.82,0.00021917,2]
[378155150,1754751040621,-460.0,0.00021917,2]
[378155152,1754751040635,-251.31249488,0.00021917,2]
[378155154,1754751040645,-460.0,0.00021917,2]
[378155156,1754751040654,-460.0,0.00021917,2]
[378155158,1754751040663,-1239.31,0.00021917,2]
[378155160,1754751040673,-460.0,0.00021917,2]
[378155162,1754751040683,-1120.26,0.00021917,2]
[378155164,1754751040692,-460.0,0.00021917,2]
[378155166,1754751040702,-460.0,0.00021917,2]
[378155168,1754751040711,-460.0,0.00021917,2]
[378155170,1754751040720,-460.0,0.00021917,2]
[378155172,1754751040729,-460.0,0.00021917,2]
[378155174,1754751040738,-460.0,0.00021917,2]
[378155176,1754751040747,-460.0,0.00021917,2]
[378155177,1754751040757,-460.0,0.00021917,2]
[378155180,1754751040766,-460.0,0.00021917,2]
[378155181,1754751040775,-460.0,0.00021917,2]
[378155184,1754751040785,-460.0,0.00021917,2]
[378155185,1754751040795,-460.0,0.00021917,2]
[378155187,1754751040804,-460.0,0.00021917,2]
[378155189,1754751040813,-460.0,0.00021917,2]
[378155191,1754751040822,-460.0,0.00021917,2]
[378155193,1754751040831,-460.0,0.00021917,2]
[378155194,1754751040841,-518.43,0.00021917,2]
[378155195,1754751040850,-460.0,0.00021917,2]
[378155196,1754751040859,-460.0,0.00021917,2]
[378155197,1754751040868,-460.0,0.00021917,2]
[378155198,1754751040877,-460.0,0.00021917,2]
[378155199,1754751040886,-460.0,0.00021917,2]
[378155200,1754751040896,-460.0,0.00021917,2]
[378155201,1754751040906,-460.0,0.00021917,2]
[378155202,1754751040916,-476.85,0.00021917,2]
[378155203,1754751040925,-460.0,0.00021917,2]
[378155204,1754751040935,-460.0,0.00021917,2]
[378155205,1754751040944,-460.0,0.00021917,2]
[378155206,1754751040953,-460.0,0.00021917,2]
[378155207,1754751040962,-460.0,0.00021917,2]
[378155208,1754751040972,-460.0,0.00021917,2]
[378155209,1754751040981,-467.18,0.00021917,2]
[378155210,1754751040991,-460.0,0.00021917,2]
[378155211,1754751041000,-465.2941641,0.00021917,2]
[378155212,1754751041010,-1608.0,0.00021917,2]
[378155213,1754751041019,-460.0,0.00021917,2]
[378155214,1754751041029,-1259.53,0.00021917,2]
[378155215,1754751041038,-460.0,0.00021917,2]
[378155216,1754751041047,-460.0,0.00021917,2]
[378155217,1754751041056,-460.0,0.00021917,2]
[378155218,1754751041065,-460.0,0.00021917,2]
[378155219,1754751041074,-460.0,0.00021917,2]
[378155220,1754751041083,-460.0,0.00021917,2]
[378155221,1754751041093,-509.89,0.00021917,2]
[378155222,1754751041102,-460.0,0.00021917,2]
[378155223,1754751041111,-422.74640294,0.00021917,2]
[378155224,1754751041120,-460.0,0.00021917,2]
[378155225,1754751041128,-460.0,0.00021917,2]
[378155226,1754751041138,-460.0,0.00021917,2]
[378155227,1754751041147,-463.91005693,0.00021917,2]
[378155228,1754751041156,-460.0,0.00021917,2]
[378155229,1754751041166,-460.0,0.00021917,2]
[378155230,1754751041175,-360.69061479,0.00021917,2]
[378155231,1754751041184,-460.0,0.00021917,2]
[378155232,1754751041193,-1029.21,0.00021917,2]
[378155233,1754751041202,-1029.21,0.00021917,2]
[378155234,1754751041211,-1029.21,0.00021917,2]
[378155235,1754751041221,-1029.21,0.00021917,2]
[378155236,1754751041230,-1029.21,0.00021917,2]
[378155237,1754751041239,-1029.21,0.00021917,2]
[378155238,1754751041248,-1089.01,0.00021917,2]
[378155239,1754751041257,-1029.21,0.00021917,2]
[378155240,1754751041267,-1029.21,0.00021917,2]
[378155241,1754751041276,-1029.21,0.00021917,2]
[378155242,1754751041286,-1029.21,0.00021917,2]
[378155243,1754751041295,-460.0,0.00021917,2]
[378155244,1754751041305,-314.33880988,0.00021917,2]
[378155245,1754751041314,-460.0,0.00021917,2]
[378155246,1754751041323,-235.08633968,0.00021917,2]
[378155247,1754751041332,-460.0,0.00021917,2]
[378155248,1754751041341,-460.0,0.00021917,2]
[378155249,1754751041350,-1054.85,0.00021917,2]
[378155251,1754751041360,-460.0,0.00021917,2]
[378155253,1754751041369,-460.0,0.00021917,2]
[378155255,1754751041379,-460.0,0.00021917,2]
[378155256,1754751041388,-460.0,0.00021917,2]
[378155259,1754751041398,-583.65,0.00021917,2]
[378155261,1754751041406,-242.9527781,0.00021917,2]
[378155262,1754751041415,-460.0,0.00021917,2]
[378155263,1754751041425,-460.0,0.00021917,2]
[378155264,1754751041434,-460.0,0.00021917,2]
[378155266,1754751041444,-460.0,0.00021917,2]
[378155268,1754751041453,-460.0,0.00021917,2]
[378155270,1754751041463,-467.77290422,0.00021917,2]
[378155272,1754751041472,-460.0,0.00021917,2]
[378155274,1754751041481,-460.0,0.00021917,2]
[378155276,1754751041491,-460.0,0.00021917,2]
[378155278,1754751041500,-460.0,0.00021917,2]
[378155280,1754751041509,-460.0,0.00021917,2]
[378155282,1754751041519,-460.0,0.00021917,2]
[378155284,1754751041528,-460.0,0.00021917,2]
[378155286,1754751041537,-3409.31,0.00021917,2]
[378155288,1754751041547,-460.0,0.00021917,2]
[378155290,1754751041556,-460.0,0.00021917,2]
[378155292,1754751041565,-460.0,0.00021917,2]
[378155294,1754751041574,-272.2085337,0.00021917,2]
[378155296,1754751041583,-460.0,0.00021917,2]
[378155298,1754751041592,-460.0,0.00021917,2]
[378155300,1754751041601,-460.0,0.00021917,2]
[378155302,1754751041611,-924.24,0.00021917,2]
[378155304,1754751041620,-460.0,0.00021917,2]
[378155306,1754751041632,-460.0,0.00021917,2]
[378155307,1754751041641,-460.0,0.00021917,2]